Cogmind - Beta 16 @@@ ROGUE MODE // 2026.01.06 @ 15:00:49 Player: Oldman Pu Result: Destroyed by as-12758 with Assembled Blade Performance ------------- Evolutions (0) 0 Regions Visited (2) 400 Robots Destroyed (21) 105 Value Destroyed (465) 465 Prototype IDs (2) 40 Alien Tech Used (0) 0 Bonus (0) 0 TOTAL SCORE: 1010 Bonus ------- None Cogmind --------- Core Integrity 0/250 Matter 300/300 Energy 124/125 System Corruption 0% Temperature Cool (6) Movement Core (500) Ox9 Location -10/Mines Parts ------- > --- POWER (1) -------- Light Ion Engine > --- PROPULSION (2) --- (None) > --- UTILITY (2) ------ Heat Sink Large Storage Unit > --- WEAPON (2) ------- Improved Medium Laser Light Assault Rifle > --- INVENTORY (15) --- Heat Sink High-capacity Matter Pod (200) Light Armor Plating Light Armor Plating Medium Laser Medium Laser Improved Medium Laser Improved Medium Laser Beam Cannon Particle Cannon Particle Cannon Particle Cannon Particle Cannon Light Assault Rifle Light Assault Rifle Peak State ------------ > --- POWER ------------ Ion Engine > --- PROPULSION ------- Wheel Wheel > --- UTILITY ---------- Heat Sink Large Storage Unit > --- WEAPON ----------- Improved Medium Laser Light Assault Rifle > --- INVENTORY -------- Heat Sink Light Armor Plating Light Armor Plating Medium Laser Medium Laser Improved Medium Laser Improved Medium Laser Particle Cannon Particle Cannon Particle Cannon Particle Cannon Light Assault Rifle Light Assault Rifle [Rating: 11] Favorites ----------- Power Ion Engine Engine Ion Engine Propulsion Wheel Wheel Wheel Utility Large Storage Unit Device Heat Sink Storage Large Storage Unit Protection Light Armor Plating Weapon Light Assault Rifle Energy Gun Improved Medium Laser Ballistic Gun Light Assault Rifle Build | -11 -10 -10 ------- Run | Yrd Mat Min Slots Evolved . | . . . Power . | . . . Propulsion . | . . . Utility . | . . . Weapon . | . . . Parts Attached 20 | 6 12 2 Power 4 | 1 1 2 Engine 4 | 1 1 2 Core . | . . . Reactor . | . . . Propulsion 3 | 2 1 . Treads . | . . . Leg . | . . . Wheel 3 | 2 1 . Hover . | . . . Flight . | . . . Utility 6 | 1 5 . Device 1 | . 1 . Storage 2 | 1 1 . Processor . | . . . Hackware . | . . . Protection 3 | . 3 . Artifact . | . . . Weapon 7 | 2 5 . Energy Gun 4 | . 4 . Energy Cannon . | . . . Ballistic Gun 3 | 2 1 . Ballistic Cannon . | . . . Launcher . | . . . Special Weapon . | . . . Impact Weapon . | . . . Slashing Weapon . | . . . Piercing Weapon . | . . . Special Melee Weapon . | . . . Unidentified Prototypes . | . . . Parts Lost 5 | . 3 2 Power 2 | . 1 1 Propulsion 2 | . 1 1 Utility . | . . . Weapon 1 | . 1 . Highest Loss Streak 2 | . 2 1 To Critical Strikes . | . . . Average Backups 9 | . 7 14 Power . | . . . Propulsion . | . . . Utility 2 | . 1 3 Weapon 6 | . 5 11 Tool/Special . | . . . Unused Backups 13 | . . 13 Power . | . . . Propulsion . | . . . Utility 4 | . . 4 Weapon 9 | . . 9 Tool/Special . | . . . Average Slot Usage (%) 96 | . 96 97 Engine 13 | . 13 11 Wheel 27 | . 27 28 Device 6 | . 3 14 Storage 14 | . 14 14 Protection 6 | . 8 . Energy Gun 10 | . 9 14 Ballistic Gun 17 | . 18 14 Peak Build Rating 11 | 6 11 11 Average Rating 8 | 4 7 10 On Entrance 5 | . 6 11 Avg Prop Armor Cover (%) 14 | 14 . . Naked Turns . | . . . Heaviest Build 32 | 12 32 30 Greatest Support 26 | 26 26 20 Greatest Overweight (x) 3 | 3 3 1 Average Overweight (x) . | . . 1 Largest Inventory Capacity 15 | 8 15 15 Average Capacity 13 | 7 13 15 Most Carried 15 | . 14 15 Average Carried 9 | . 7 14 Final Capacity 15 | 8 15 15 Final Carried 15 | . 14 15 Class Distribution -------------------- 100% | Mutant Dominant Class ---------------- Mutant | -10/Materials Mutant | -10/Mines Resources | -11 -10 -10 ----------- Run | Yrd Mat Min Matter Collected 476 | 113 343 20 Remotely . | . . . Salvage Created 686 | . 686 . Parts 34 | . 34 . Haulers Intercepted 2 | . 2 . Recyclers Shooed . | . . . Parts Field Recycled . | . . . Retrieved Matter . | . . . Parts Self-Destructed . | . . . Prevented . | . . . Parts Restored . | . . . Kills | -11 -10 -10 ------- Run | Yrd Mat Min Combat Hostiles Destroyed 16 | . 16 . Guns 16 | . 16 . Classes Destroyed 4 | . 4 . Hauler 2 | . 2 . Watcher 3 | . 3 . Swarmer 6 | . 6 . Grunt 10 | . 10 . Best Kill Streak 5 | . 5 . Combat Bots Only 3 | . 3 . Max Kills in Single Turn 2 | . 2 . Gunslinging 1 | . 1 . Exploded . | . . . Melee . | . . . Uniques/NPCs Destroyed . | . . . Combat | -11 -10 -10 -------- Run | Yrd Mat Min Hostile Shots Fired 86 | . 77 9 Missed 17 | . 14 3 Hits 69 | . 63 6 Melee 3 | . . 3 Projectile 66 | . 63 3 Critical Strikes 1 | . . 1 Part Disruptions 1 | . . 1 Damage Taken 850 | . 673 177 Core 259 | . 153 106 Absorbed by Shields . | . . . Redirected to Shielding 17 | . 17 . Core Remaining (%) 100 | 100 . . Volleys Fired 72 | . 71 1 Largest 2 | . 2 2 Hottest 100 | . 100 76 Shots Fired 130 | . 128 2 Gun 130 | . 128 2 Cannon . | . . . Launcher . | . . . Special . | . . . Kinetic 82 | . 81 1 Thermal 48 | . 47 1 Explosive . | . . . Electromagnetic . | . . . Robot Hit Streak 10 | . 10 1 Robot Miss Streak 5 | . 5 1 Penetration Max . | . . . Secondary Targets 6 | . 6 . Max Gunslinging Chain 1 | . 1 . Shots Hit Robots 85 | . 84 1 Core Hits 37 | . 36 1 Critical Kills . | . . . Critical Parts Destroyed . | . . . Critical Strikes 3 | . 3 . Burn 3 | . 3 . Melee Attacks . | . . . Impact . | . . . Slashing . | . . . Piercing . | . . . Sneak Attacks . | . . . Combat Hostiles . | . . . Follow-up Attacks . | . . . Damage Inflicted 892 | . 874 18 Guns 892 | . 874 18 Cannons . | . . . Explosions . | . . . Melee . | . . . Ramming . | . . . Kinetic 391 | . 391 . Thermal 501 | . 483 18 Explosive . | . . . Electromagnetic . | . . . Impact . | . . . Slashing . | . . . Piercing . | . . . Highest Corruption . | . . . Average Corruption . | . . . Corruption Purged . | . . . Corruption Blocked . | . . . Overload Shots . | . . . Overflow Damage . | . . . Projectiles . | . . . Explosions . | . . . Melee . | . . . Knockbacks . | . . . Impact . | . . . Kinetic . | . . . Secondary . | . . . Self-Inflicted Damage . | . . . Shots . | . . . Rammed . | . . . Targets Rammed . | . . . Kicked . | . . . Crushed . | . . . Highest Temperature 410 | . 410 6 Average Temperature 157 | . 159 4 Received Heat Transfer 341 | . 321 20 Effects 3 | . 3 . Energy Bleed 1 | . 1 . Interference 1 | . 1 . Short Circuit 1 | . 1 . Siege Activations . | . . . Martial Activations . | . . . Shielding Activations . | . . . Robots Disrupted . | . . . Combat Hostiles . | . . . Robots Corrupted . | . . . Combat Hostiles . | . . . Parts Fried . | . . . Impact Corruptions . | . . . Robots Melted . | . . . Combat Hostiles . | . . . Parts Melted 6 | . 6 . Heat Transferred 1591 | . 1554 37 Parts Sabotaged . | . . . Parts Stolen . | . . . Parts Stripped . | . . . Power Chain Reactions . | . . . Alert | -11 -10 -10 ------- Run | Yrd Mat Min Maximum Alert Level . | . . . Low Security (%) 100 | 100 100 100 Level 1 . | . . . Level 2 . | . . . Level 3 . | . . . Level 4 . | . . . Level 5 . | . . . High Security . | . . . Max Security . | . . . Peak Influence 165 | . 165 54 Initial 54 | . . 54 Average 48 | . 61 15 Influence Increases 430 | . 430 . Destroy 0b10 Robot/C 320 | . 320 . Destroy 0b10 Robot/NC 25 | . 25 . Destroy Leader 80 | . 80 . Successful Hack 5 | . 5 . Influence Decreases 430 | . 289 141 Entered New Map 87 | . . 87 Time Decay 313 | . 259 54 Lost Part 30 | . 30 . Squads Dispatched 4 | . 4 . Investigation 3 | . 3 . Extermination . | . . . Reinforcement 1 | . 1 . Assault . | . . . Garrison . | . . . Intercept . | . . . Searches Triggered . | . . . Construction Impeded . | . . . Haulers Reinforced . | . . . Active Scanning Responses . | . . . Cargo Convoy Interrupts . | . . . Stealth | -11 -10 -10 --------- Run | Yrd Mat Min Distress Signals 1 | . 1 . Communications Jammed . | . . . Distress Signals . | . . . Times Spotted 34 | . 21 13 Peak Tracking Total 14 | . 5 14 Tactical Retreats . | . . . Traps | -11 -10 -10 ------- Run | Yrd Mat Min Traps Triggered 4 | . 3 1 Indirectly . | . . . Trap Hack Attempts . | . . . Triggered . | . . . Disarmed . | . . . Reprogrammed . | . . . Reused . | . . . Traps Extracted . | . . . Installed . | . . . Triggered . | . . . Machines | -11 -10 -10 ---------- Run | Yrd Mat Min Machines Disabled . | . . . Max in Single Turn . | . . . Machines Repaired . | . . . Machines Dismantled . | . . . Machines Sabotaged . | . . . Overloaded Fab Kills . | . . . Hacking | -11 -10 -10 --------- Run | Yrd Mat Min Machines Accessed 2 | . 1 1 Terminals 1 | . 1 . Fabricators . | . . . Repair Stations . | . . . Recycling Units . | . . . Scanalyzers . | . . . Garrison Access . | . . . Total Hacks 6 | . 5 1 Successful 3 | . 2 1 Failed 3 | . 3 . Catastrophic . | . . . Database Lockouts . | . . . Manual . | . . . Terminals 5 | . 5 . Fabricators . | . . . Repair Stations . | . . . Recycling Units . | . . . Scanalyzers . | . . . Garrison Access . | . . . Terminal Hacks 3 | . 2 1 Prototype ID Bank 1 | . 1 . Open Door 1 | . . 1 Zone Layout 1 | . 1 . Fabricator Hacks . | . . . Repair Station Hacks . | . . . Recycling Unit Hacks . | . . . Scanalyzer . | . . . Garrison Access Hacks . | . . . Unauthorized Hacks . | . . . Terminals . | . . . Fabricators . | . . . Repair Stations . | . . . Recycling Units . | . . . Scanalyzers . | . . . Garrison Access . | . . . Data Cores Recovered . | . . . Used . | . . . Hacking Detections 1 | . 1 . Full Trace Events . | . . . Feedback Events . | . . . Feedback Blocked . | . . . Robot Schematics Acquired . | . . . Robots Built . | . . . Authchips . | . . . Time . | . . . Total Robot Build Rating . | . . . Part Schematics Acquired . | . . . Parts Built . | . . . Authchips . | . . . Time . | . . . Total Part Build Rating . | . . . Part Studies Acquired . | . . . Parts Repaired . | . . . Time . | . . . Parts Recycled . | . . . Recycled Matter . | . . . Retrieved Matter . | . . . Retrieved Components . | . . . Parts Scanalyzed . | . . . Part Schematics Acquired . | . . . Parts Damaged . | . . . Bothacking | -11 -10 -10 ------------ Run | Yrd Mat Min Used RIF Installer . | . . . Robots Hacked . | . . . Non-combat . | . . . Combat . | . . . Robot Hacks Applied . | . . . Relay Couplers Released . | . . . Fabnet Peak Effective % . | . . . Robots Rewired . | . . . Allies Hacked . | . . . Hacks Repelled . | . . . Allies | -11 -10 -10 -------- Run | Yrd Mat Min Total Allies . | . . . Largest Group . | . . . Highest-Rated Group . | . . . Highest-Rated Ally . | . . . Total Orders . | . . . Ally Attacks . | . . . Total Damage . | . . . Kills . | . . . Allies Corrupted . | . . . Allies Melted . | . . . Intel | -11 -10 -10 ------- Run | Yrd Mat Min Active Infowar (turns) . | . . . Robot Analysis Total . | . . . Derelict Logs Recovered . | . . . Drone Launches . | . . . Drone Recoveries . | . . . Exploration | -11 -10 -10 ------------- Run | Yrd Mat Min Turns Passed 943 | 36 687 220 Spaces Moved 703 | 29 456 218 Core 9 | 9 . . Treads . | . . . Legs . | . . . Wheels 694 | 20 456 218 Hover . | . . . Flight . | . . . Fastest Speed 50 | 50 90 95 Average Speed 96 | 94 97 95 Slowest Speed 200 | 200 125 95 Overloaded Moves . | . . . Propulsion Burnouts . | . . . Robots Hopped . | . . . Potential Cave-ins . | . . . Cave-ins Triggered . | . . . Exploration Rate (%) 39 | 4 82 32 Regions Visited 2 Branch Regions 1 Pre-discovered Areas . | . . . Known Exits Taken . | . . . Unknown Exits Taken 2 | 1 1 . Scrap Searched 1 | . . 1 Spaces Dug . | . . . Terrain Destroyed . | . . . Melee . | . . . Projectile . | . . . AOE . | . . . Terrain Rammed . | . . . Walls Destroyed . | . . . Machines Disabled . | . . . Actions | -11 -10 -10 --------- Run | Yrd Mat Min Total 847 | 34 582 231 Wait 25 | . 19 6 Move 701 | 28 455 218 Hop . | . . . Pick Up 21 | . 19 2 Fast Attach 11 | 6 4 1 Attach 2 | . 2 . Detach . | . . . Swap 8 | . 7 1 Drop 7 | . 5 2 Fire 72 | . 71 1 Melee . | . . . Ram . | . . . Kick . | . . . Crush . | . . . Escape Stasis . | . . . Rewire . | . . . Trap . | . . . Miscellaneous . | . . . Route ------- -11/Scrapyard -10/Materials (discovered 5 exits: [*Mat x3] / *Min x2) -10/Mines History --------- Turn | Location | Event 25 | -11/Scrapyard | Discovered new exit (range 15) 37 | -11/Scrapyard | Entered Materials 83 | -10/Materials | Discovered new exit (range 9) 105 | -10/Materials | Discovered new exit (range 5) 280 | -10/Materials | Discovered new exit (range 13) 315 | -10/Materials | Build established: Mutant 491 | -10/Materials | Core integrity fell below 50% 624 | -10/Materials | Discovered new exit (range 5) 685 | -10/Materials | Discovered new exit (range 12) 724 | -10/Materials | Entered Mines 776 | -10/Mines | Found DCF Scrap (14 items) 856 | -10/Mines | Met a Derelict who couldn't figure out how to use a Trap Extractor 932 | -10/Mines | Assembled infested the area 937 | -10/Mines | Assisted by a Guerilla fighting off Assembled 942 | -10/Mines | Core integrity fell below 20% 944 | -10/Mines | Destroyed by as-12758 with Assembled Blade Last Messages --------------- 00856_ A bubble of electromagnetic force engulfs the area. 00856_ Machine disabled. 00856_ SHOP.Sys disabled. 00863_ Triggered EMP Trap. 00863_ A bubble of electromagnetic force engulfs the area. 00863_ Chain reaction triggered in Lgt. Ion Engine. 00903_ Acquired Lgt. Ion Engine. 00906_ Acquired 20 matter. 00915_ K-01 Serf collects debris. 00919_ K-01 Serf cleans the Laser Drill. 00932_ ALERT: Infestation in the mines, dispatching Demolisher response squad. 00937_ A derelict emerges from the shadows: "You need to get out of here! I've been tracking a group of Assembled to figure out where they're coming from, and they're closing on this area, come on!" 00940_ 3B-OIT(h): "I'll hold them off! Go on ahead or try to find another way!" 00940_ HV Slug penetrates Wall. 00941_ Wheel severed. 00944_ Wheel destroyed. Map ----- +----------------------------------------------------+ | ?????????????????????????????????????# #? | | ?????????????????????????????????????# # #? | | ?????????????????????????????????????# # #? | | ?????????????????????????????????????# # #? | | ?????????????????????????????????????# # #? | | ?????????????????????????????????????# # #? | | ?????????????????????????????????????# # #? | | ?????????????????????????????????????# # #? | | ?????????????????????????????????????# # #? | | ?????????????????????????????????????# # #? | | ?????????????????????????????????????# # #? | | ?????????????????????????????????????# ##########? | | ?????????????????????????????????????# #?????????? | | ?????????????????????????####????????# #?????????? | | ????????????????????????? #????????# ####??????? | | ?????????????????????????# #????????# ######## | | ??????????????????###????# #????????#### ## | | ?????????????????## ##### #?########### ## | | ????????????????## #?# | | ????????????????# #?# | | ????????????????# t#?# ############# "" | | ?????????????????# ### #???????????# "" | | ??????????????????# k #??###??????# "" | | ??????????????????# h #?## ######## | | ???????????????????# a;####### #?### | | ???????????????????## @t##????## !!! #???## | | ????????????????????# aa##?????# ! ! #????# | | ????????????????????# *!#??????# ! ###### | | ????????????????????# *%!??????## ! ! ## ## | | ????????????????????# = ???????#### | | ????????????????????## ??????????##### | | ?????????????????????###aa#??????????????## | | ???????????????????????#aa#???????????????##### | | ???????????????????????# a ???????????????????#### | | ??????????????????????? = #??????????????????????# | | ???????????????????????#%a???????????????????????# | | ??????????????????????? a ??????????????????????## | | ??????????????????????? ??????????????????????# | | ???????????????????????# a??????????????????????# | | ???????????????????????? ??????????????????????# | | ????????????????????????a ??????????????????????## | | ?????????????????????????????????????????????????? | | ?????????????????????????????????????????????????? | | ?????????????????????????????????????????????????? | | ?????????????????????????????????????????????????? | | ?????????????????????????????????????????????????? | | ?????????????????????????????????????????????????? | | ?????????????????????????????????????????????????? | | ?????????????????????????????????????????????????? | | ?????????????????????????????????????????????????? | +----------------------------------------------------+ Best States ------------- Heat Dissipation 35 Energy Generation 10 Energy Capacity 250 Matter Stores 300 Matter Capacity 300 Sight Range 16 Terrain Scan Density 10 Armor Coverage 150 Weapon Shielding 33 Evasion (%) 50 Item Schematics ----------------- None Robot Schematics ------------------ None Fabricated ------------ Nothing Repaired ---------- Nothing Studied --------- None Alien Tech Used ----------------- None Achievements -------------- None Challenges ------------ None Game ------ Seed FireTargetSuit Manual? 0 Play Time 00:12:18 Cumulative 313.2 hours Start 2026.01.06 @ 14:50:22 End 2026.01.06 @ 15:00:49 Sessions 1 Manual Loads 0 Difficulty Rogue Special Mode None Game No. 275 Rogue 263 Adventurer 12 Explorer 0 Win Type - Total 1 Types 1/0/0/0/0/0/0/0/0/0 Lore% 36 Gallery% 44 Achievement% 25 Wizard Run 0 Options --------- Layout 1 ASCII 0 Keyboard 0 Movement Mouse Keybinds 0 Fullscreen 1 Font 32/SmallcapsGlow Map View 77x35 Zoom Use 0% Tactical HUD 1 Map Filters NONE Filters NONE Steam 1 RUN: aef7d495-8c6d-41da-a15f-64db48558520